bitfinex/quotes_ETHUSD_20240917
["timestamp","ask_amount","ask_price","bid_price","bid_amount"]
[1726575603591,2.4367,2314.3,2313.9,4.3216]
[1726575603777,2.4367,2314.3,2314.0,4.32151]
[1726575604103,2.4367,2314.3,2313.9,8.64315]
[1726575604393,2.2798,2314.0,2313.7,4.32192]
[1726575605863,2.2798,2314.0,2313.7,4.322]
[1726575606268,2.2798,2314.0,2313.8,4.32188]
[1726575607391,11.79074,2314.5,2314.0,4.32152]
[1726575607392,2.2567,2314.2,2314.0,4.32152]
[1726575608163,2.2567,2314.2,2314.0,4.3214]
[1726575608790,2.2567,2314.4,2314.0,5.185712]
[1726575608972,2.2567,2314.4,2314.2,4.32114]
[1726575609170,2.2567,2314.4,2314.2,8.64209]
[1726575609467,4.32035,2314.7,2314.3,4.32096]
[1726575609468,2.2567,2314.7,2314.3,4.32096]
[1726575609969,6.57691,2314.7,2314.3,4.32096]
[1726575610169,2.2567,2314.7,2314.3,4.32096]
[1726575611661,2.70829205,2314.7,2314.3,4.32096]
[1726575612056,2.70829205,2314.7,2314.3,4.32084]
[1726575613867,2.70829205,2314.7,2314.3,5.185042]
[1726575614066,2.70829205,2314.7,2314.3,4.32084]
[1726575614795,2.70829205,2314.7,2314.4,4.32068]
[1726575615597,2.70829205,2314.7,2314.4,4.32067]
[1726575615776,2.70829205,2314.7,2314.4,8.64134]
[1726575615983,2.70829205,2314.7,2314.4,8.64136]
[1726575616493,2.70829205,2314.7,2314.5,4.32056]
[1726575616494,2.2567,2314.7,2314.5,4.32056]
[1726575616670,2.2567,2314.7,2314.6,4.3204]
[1726575618381,2.4918,2314.9,2314.7,4.32017]
[1726575618584,2.5309755,2315.1,2314.8,4.32002]
[1726575619975,2.5309755,2315.1,2314.9,4.31983]
[1726575621513,2.5309755,2315.1,2315.0,4.31965]
[1726575621698,0.0391755,2315.1,2315.0,8.6393]
[1726575621894,0.0391755,2315.1,2315.0,9.935215]
[1726575627217,0.0391755,2315.1,2315.0,1.295915]
[1726575627515,0.0391755,2315.1,2315.0,4.31965]
[1726575628231,0.0391755,2315.1,2314.8,4.31989]
[1726575628232,2.3581,2315.0,2314.8,4.31989]
[1726575628372,2.3581,2315.0,2314.9,4.31982]
[1726575628575,2.3581,2315.0,2314.6,4.32023]
[1726575628785,2.3581,2315.0,2314.8,4.32002]
[1726575629177,2.3581,2315.0,2314.7,4.3202]
[1726575629379,2.3581,2315.0,2314.6,9.072643]
[1726575629619,2.3581,2315.0,2314.7,4.32018]
[1726575630389,2.3581,2315.0,2314.7,5.2274303]
[1726575631337,2.3581,2315.0,2314.6,4.752323]
[1726575631338,8.12202652,2314.9,2314.4,4.32067]
[1726575631483,2.2504,2314.8,2314.5,4.32046]
[1726575631676,2.2504,2314.8,2314.6,4.3203]
[1726575631881,2.2504,2314.8,2314.7,4.32021]
[1726575632505,2.4744,2315.0,2314.8,4.32]
[1726575632692,0.0391755,2315.1,2315.0,4.31965]
[1726575632894,0.0391755,2315.1,2315.0,8.6393]
[1726575633080,0.0391755,2315.1,2315.0,9.65840065]
[1726575636696,0.0391755,2315.1,2315.0,5.33875065]
[1726575637119,0.0391755,2315.1,2314.9,4.31983]
[1726575637483,2.2954755,2315.1,2314.9,8.63952]
[1726575637721,2.2954755,2315.1,2314.8,4.3199]
[1726575639018,2.2954755,2315.1,2314.7,4.32015]
[1726575639019,2.2954755,2315.1,2314.9,4.31984]
[1726575640270,2.2954755,2315.1,2315.0,4.31965]
[1726575642046,0.0391755,2315.1,2315.0,4.31965]
[1726575642437,0.0391755,2315.1,2315.0,8.6393]
[1726575650733,0.0391755,2315.1,2315.0,12.95895]
[1726575650935,0.0391755,2315.1,2315.0,14.63407031]
[1726575651267,0.0391755,2315.1,2315.0,17.63407031]
[1726575651471,2.41,2315.7,2315.6,4.31853]
[1726575651976,0.0381474,2315.8,2315.7,8.63668]
[1726575652546,0.0381474,2315.8,2315.7,11.99691814]
[1726575653088,0.0381474,2315.8,2315.7,19.31525814]
[1726575653240,0.0381474,2315.8,2315.7,25.82201046]
[1726575653434,0.0381474,2315.8,2315.7,27.62898969]
[1726575653654,0.0381474,2315.8,2315.7,31.05056425]
[1726575653845,0.0381474,2315.8,2315.7,26.73222425]
[1726575654586,2.4602474,2316.5,2315.7,26.73222425]
[1726575654587,2.4602474,2316.5,2316.3,4.31716]
[1726575655749,2.4602474,2316.5,2315.7,11.72301456]
[1726575655750,0.0381474,2316.5,2316.4,4.31704]
[1726575655955,0.0381474,2316.5,2316.4,4.86380395]
[1726575661286,0.0381474,2316.5,2316.4,9.18084395]
[1726575661612,0.0381474,2316.5,2316.4,4.86380395]
[1726575663006,0.0381474,2316.5,2316.4,9.18084395]
[1726575663182,0.0381474,2316.5,2316.4,12.54108209]
[1726575664413,0.0381474,2316.5,2316.4,9.18084395]
[1726575664870,0.0381474,2316.5,2316.4,4.86380395]
[1726575665219,0.0381474,2316.5,2316.4,9.18084395]
[1726575665395,0.0381474,2316.5,2316.4,0.54676395]
[1726575665711,2.5364474,2316.5,2316.4,4.31704]
[1726575666705,2.5364474,2316.5,2316.3,4.31707]
[1726575666911,2.5364474,2316.5,2316.4,4.31704]
[1726575668370,2.5364474,2316.5,2316.3,4.31707]
[1726575668619,2.5364474,2316.5,2316.3,8.63421]
[1726575668787,2.5364474,2316.5,2316.4,0.863421]
[1726575668991,2.5364474,2316.5,2316.3,4.31707]
[1726575669311,2.5364474,2316.5,2316.3,8.63417]
[1726575669710,2.5364474,2316.5,2316.2,4.31737]
[1726575669888,2.5364474,2316.5,2316.2,8.63464]
[1726575670090,2.5364474,2316.5,2316.2,4.31731]
[1726575670272,2.5364474,2316.5,2316.2,5.480792]
[1726575670472,2.5364474,2316.5,2316.3,4.31721]
[1726575670684,2.5364474,2316.5,2316.2,5.480862]
[1726575671007,2.5364474,2316.5,2316.2,5.480792]
[1726575671176,2.5364474,2316.5,2316.3,4.31722]
[1726575671378,2.5364474,2316.5,2316.4,4.31704]
[1726575671582,2.5364474,2316.5,2316.2,4.31734]
[1726575671794,2.5364474,2316.5,2316.3,4.31721]
[1726575672082,2.5364474,2316.5,2316.2,4.31734]
[1726575672286,2.5364474,2316.5,2316.2,4.31731]
[1726575672489,2.5364474,2316.5,2316.3,0.431731]
[1726575673112,2.5364474,2316.5,2316.3,4.748951]
[1726575675321,2.5364474,2316.5,2316.3,0.431731]
[1726575675828,2.5364474,2316.5,2316.3,4.31714]
[1726575676215,2.5364474,2316.5,2316.3,4.31712]
[1726575676525,2.459,2316.1,2315.8,4.31802]
[1726575676728,2.459,2316.1,2315.7,4.31822]
[1726575677042,2.459,2316.1,2315.4,3.69626195]
[1726575677043,2.26,2315.6,2315.5,4.0]
[1726575677319,2.26,2315.6,2315.2,4.31919]
[1726575677320,2.26,2315.6,2315.3,4.319]
[1726575677624,2.26,2315.6,2315.2,4.31919]
[1726575677834,4.31903,2315.4,2314.5,0.90055324]
[1726575678125,2.4469,2315.3,2314.9,4.31969]
[1726575678335,4.31933,2315.2,2314.6,4.32027]
[1726575678631,2.4469,2315.1,2314.6,4.32027]
[1726575678838,2.4469,2315.1,2314.7,0.50675296]
[1726575679135,2.4469,2315.1,2314.7,4.82687296]
[1726575679628,2.4469,2315.1,2314.8,4.32001]
[1726575680014,2.4469,2315.1,2314.9,4.31979]
[1726575680402,3.36023814,2315.8,2315.0,4.31965]
[1726575680403,2.307,2315.6,2315.0,4.31965]
[1726575680602,6.62558,2315.6,2315.0,4.31965]
[1726575680788,4.31877,2315.5,2314.9,4.8024843]
[1726575681219,2.307,2315.6,2315.0,4.31965]
[1726575681433,6.62557,2315.6,2315.0,9.55139343]
[1726575681621,2.307,2315.6,2315.1,4.31928]
[1726575681807,2.307,2315.6,2315.2,4.31925]
[1726575681984,2.307,2315.6,2315.2,8.6385]
[1726575682189,2.307,2315.6,2315.2,4.31925]
[1726575682400,2.307,2315.6,2315.4,4.31889]
[1726575682598,2.307,2315.6,2315.4,4.31881]
[1726575683032,2.307,2315.6,2315.4,4.31879]
[1726575683227,2.307,2315.6,2315.5,4.31872]
[1726575683946,2.307,2315.6,2315.4,4.31878]
[1726575684135,2.307,2315.6,2315.4,8.63757]
[1726575684317,2.307,2315.6,2315.4,0.95926703]
[1726575684643,2.307,2315.6,2315.3,4.31897]
[1726575685098,2.307,2315.6,2315.2,5.27424034]
[1726575685299,2.307,2315.6,2315.1,4.31946]
[1726575685518,6.62563,2315.6,2315.1,4.31946]
[1726575685922,10.94428,2315.6,2315.0,4.31954]
[1726575686144,4.31899,2315.4,2314.9,4.31967]
[1726575686516,6.69541,2315.3,2314.8,4.31988]
[1726575686720,2.3763,2315.2,2314.7,4.32011]
[1726575686920,2.3763,2315.2,2314.1,15.91514504]
[1726575686921,2.3763,2314.9,2314.5,4.32058]
[1726575688230,6.69627,2314.9,2314.4,4.3206]
[1726575688556,4.32003,2314.8,2314.3,4.32093]
[1726575689504,4.32003,2314.8,2314.4,4.32075]
[1726575690729,5.73653814,2314.9,2314.4,4.32075]
[1726575690927,10.16447279,2314.9,2314.4,4.32075]
[1726575691126,6.80420465,2314.9,2314.4,4.32075]
[1726575691332,6.80420465,2314.9,2314.4,5.184925]
[1726575691645,2.3763,2314.9,2314.5,4.32046]
[1726575691843,2.3763,2314.9,2314.7,4.32021]
[1726575692654,2.3763,2314.9,2314.6,4.32038]
[1726575693657,2.3763,2314.9,2314.7,4.32008]
[1726575693816,2.3766,2315.3,2314.8,4.32002]
[1726575694026,2.3766,2315.3,2314.9,4.31983]
[1726575694415,6.69579,2315.3,2314.8,4.31992]
[1726575694627,2.3766,2315.3,2314.8,4.8383316]
[1726575694863,2.3766,2315.3,2315.1,4.31932]
[1726575695855,2.3766,2315.3,2315.0,4.3196]
[1726575695856,2.3766,2315.3,2315.2,4.31928]
[1726575696054,2.3766,2315.3,2315.2,5.183168]
[1726575696956,2.3766,2315.3,2315.2,0.863888]
[1726575697456,2.3766,2315.3,2315.0,4.31963]
[1726575697665,2.3766,2315.3,2314.9,4.31972]
[1726575697873,2.3766,2315.3,2315.0,4.31962]
[1726575698242,2.3766,2315.3,2315.1,4.31946]
[1726575699832,2.3766,2315.3,2314.9,4.31965]
[1726575700043,2.3766,2315.3,2314.9,4.80345616]
[1726575700258,4.31929,2315.2,2314.8,4.32001]
[1726575700475,8.63872,2315.2,2314.7,4.32007]
[1726575700634,8.63869,2315.2,2314.7,4.32007]
[1726575700830,2.3721,2315.1,2314.5,4.32045]
[1726575701037,3.235969,2315.1,2314.7,4.32018]
[1726575701256,2.3721,2315.1,2314.7,4.32018]
[1726575702180,2.3721,2315.1,2314.8,4.3199]
[1726575703273,2.3721,2315.1,2315.0,4.31965]
[1726575703571,2.4213,2315.3,2315.1,4.31946]
[1726575703932,2.4213,2315.3,2315.2,4.31928]
[1726575704873,2.3506,2315.6,2315.3,4.31909]
[1726575705035,2.3506,2315.6,2315.3,4.319]
[1726575706430,2.3506,2315.6,2315.3,4.31899]
[1726575706628,2.3506,2315.6,2315.3,5.182819]
[1726575706827,2.3506,2315.6,2315.1,4.3193]
[1726575706828,6.66921,2315.6,2315.1,4.3193]
[1726575707276,6.66921,2315.6,2315.1,8.63867]
[1726575707772,4.31872,2315.5,2315.1,4.3193]
[1726575708364,4.31928,2315.2,2314.8,4.31993]
[1726575708648,2.3133,2315.1,2314.8,4.31993]
[1726575708837,2.3133,2315.1,2314.6,4.32029]
[1726575708838,4.31973,2315.0,2314.6,4.32029]
[1726575709034,4.31973,2315.0,2314.6,5.184383]
[1726575709232,4.31973,2315.0,2314.4,4.32064]
[1726575709233,2.3133,2314.8,2314.4,4.32064]
[1726575709663,4.42825057,2314.7,2314.2,4.321]
[1726575709884,6.63377,2314.6,2314.2,0.4321]
[1726575710075,4.32059,2314.5,2314.0,8.64278]
[1726575710260,2.275,2314.4,2313.8,4.32178]
[1726575710470,2.275,2314.4,2314.0,4.32151]
[1726575712449,2.275,2314.4,2314.0,4.32142]
[1726575712874,2.275,2314.4,2313.8,4.32183]
[1726575713074,2.275,2314.4,2314.2,4.32096]
[1726575713277,2.275,2314.4,2314.3,4.32096]
[1726575713481,2.4707,2314.9,2314.4,4.3207]
[1726575713781,0.45225648,2314.7,2314.6,4.32036]
[1726575715894,0.45225648,2314.7,2314.6,8.64076]
[1726575716412,2.4333,2315.1,2314.9,4.31967]
[1726575718495,2.4333,2315.1,2315.0,4.31965]
[1726575721395,2.4333,2315.1,2314.7,4.32006]
[1726575721596,2.4333,2315.1,2314.8,4.31994]
[1726575723491,2.4333,2315.1,2315.0,8.6393]
[1726575723694,2.4098,2315.5,2315.1,4.31931]
[1726575724057,2.4098,2315.5,2315.2,4.31911]
[1726575724586,2.4098,2315.5,2315.3,4.31907]
[1726575726529,2.4098,2315.5,2315.2,4.31924]
[1726575727055,6.72854,2315.5,2315.1,4.31935]
[1726575728820,2.4098,2315.5,2315.1,4.31935]
[1726575729147,2.4098,2315.5,2315.2,4.31918]
[1726575729502,2.4098,2315.5,2315.1,4.751285]
[1726575729694,6.72854,2315.5,2315.1,4.31935]
[1726575729928,6.72724379,2315.5,2315.1,4.31935]
[1726575731590,4.3189,2315.4,2314.9,4.31967]
[1726575731730,4.31917,2315.3,2314.9,8.63947]
[1726575731940,4.31917,2315.3,2314.9,4.31971]
[1726575732539,0.10798326,2315.4,2314.9,4.31971]
[1726575732540,4.31895,2315.4,2314.9,4.31971]
[1726575732843,2.4151,2315.3,2315.0,4.31955]
[1726575733053,2.4151,2315.3,2315.2,4.31928]
[1726575733249,4.31845,2315.7,2315.3,4.31905]
[1726575733250,2.2534,2315.6,2315.3,4.31905]
[1726575734100,2.2534,2315.6,2315.3,4.31901]
[1726575735041,6.57263,2315.3,2314.8,0.90055324]
[1726575735212,2.2534,2315.3,2315.0,4.31958]
[1726575735427,2.2534,2315.3,2315.0,4.31956]
[1726575735613,2.2534,2315.3,2315.2,4.31928]
[1726575735813,2.4338,2315.6,2315.3,4.31904]
[1726575736070,2.4338,2315.6,2315.4,4.31885]
[1726575736439,2.4338,2315.6,2315.3,4.31907]
[1726575736951,2.4338,2315.6,2315.4,4.31886]
[1726575737273,2.3268,2315.9,2315.6,4.31844]
[1726575737471,2.3268,2315.9,2315.8,4.31816]
[1726575737771,2.3268,2315.9,2315.8,4.749976]
[1726575738063,2.3268,2315.9,2315.8,9.068136]
[1726575738369,2.4442,2316.3,2315.9,4.31787]
[1726575738662,2.4442,2316.3,2316.0,4.31767]
[1726575738813,2.4442,2316.3,2316.0,5.2244056]
[1726575740047,2.4442,2316.3,2316.1,4.31758]
[1726575740260,2.4442,2316.3,2316.0,5.2244056]
[1726575741122,6.76155,2316.3,2315.8,4.749816]
[1726575741329,2.4586,2316.2,2315.8,0.431816]
[1726575741570,0.0381474,2316.5,2315.5,3.0]
[1726575741571,4.31775,2316.1,2315.6,4.31852]
[1726575741744,2.4586,2316.0,2315.6,4.31852]
[1726575742053,4.31799,2315.9,2315.4,4.31877]
[1726575742361,6.77639,2316.0,2315.5,4.31868]
[1726575743310,4.31799,2315.9,2315.4,4.31877]
[1726575743516,6.81777,2315.8,2315.3,4.31909]
[1726575743753,6.81777,2315.8,2315.2,4.31916]
[1726575743754,2.4995,2315.6,2315.2,4.31916]
[1726575744160,2.4995,2315.6,2315.1,4.31932]
[1726575744361,2.4995,2315.6,2315.2,4.31919]
[1726575745653,2.4308,2315.4,2315.0,4.31953]
[1726575746186,6.74973,2315.4,2315.0,4.31953]
[1726575746385,2.4308,2315.4,2315.0,4.31953]
[1726575746988,2.4308,2315.4,2315.1,4.31946]
[1726575748487,2.4308,2315.4,2315.3,4.31909]
[1726575749276,2.4308,2315.4,2315.2,4.31922]
[1726575749277,2.3396,2315.7,2315.4,4.31882]
[1726575749482,2.3396,2315.7,2315.4,4.3188]
[1726575749667,2.3396,2315.7,2315.4,4.31875]
[1726575749870,2.3396,2315.7,2315.5,4.750505]
[1726575750156,2.3396,2315.7,2315.6,4.31853]
[1726575751092,2.3396,2315.7,2315.5,4.750505]
[1726575751339,2.3396,2315.7,2315.5,8.63722]
[1726575752060,2.3396,2315.7,2315.6,4.31853]
[1726575752759,2.3396,2315.7,2315.4,4.31878]
[1726575753483,2.3396,2315.7,2315.5,4.31864]
[1726575754230,2.3396,2315.7,2315.6,4.31853]
[1726575755632,2.3396,2315.7,2315.5,0.863742]
[1726575755633,2.3396,2315.7,2315.5,5.182412]
[1726575755799,2.3396,2315.7,2315.6,4.31853]
[1726575756000,2.4474,2315.9,2315.7,4.31816]
[1726575756204,2.4474,2315.9,2315.8,4.749976]
[1726575756706,2.4474,2316.2,2315.9,4.31795]
[1726575758886,2.4474,2316.2,2316.0,4.31765]
[1726575759726,2.4474,2316.2,2315.9,4.31795]
[1726575760459,2.4474,2316.2,2315.9,5.2247446]
[1726575761862,2.4474,2316.2,2315.9,9.5426146]
[1726575762159,2.4474,2316.2,2315.9,5.2246646]
[1726575763159,2.4474,2316.2,2315.9,9.5425446]
[1726575763777,2.4474,2316.2,2315.9,5.2246646]
[1726575763920,2.4474,2316.2,2316.0,4.31775]
[1726575764571,2.2960474,2316.5,2316.1,4.31746]
[1726575764771,2.2960474,2316.5,2316.2,4.31729]
[1726575764979,0.0381474,2316.5,2316.4,8.63408]
[1726575765497,0.0381474,2316.5,2316.4,4.31704]
[1726575767384,0.0381474,2316.5,2316.4,8.63408]
[1726575772587,0.0381474,2316.5,2316.3,4.31715]
[1726575772588,2.5222474,2316.5,2316.3,4.31715]
[1726575772885,2.5222474,2316.5,2316.3,4.31706]
[1726575773130,7.52308514,2316.5,2316.0,4.31769]
[1726575773389,3.20613514,2316.5,2316.0,4.31769]
[1726575773592,4.31704,2316.4,2316.0,4.31769]
[1726575773808,7.52299514,2316.5,2316.0,4.31769]
[1726575774006,3.00074923,2316.4,2315.9,4.31781]
[1726575774196,3.00074923,2316.4,2315.8,4.31806]
[1726575774197,6.90938434,2316.3,2315.8,4.31806]
[1726575774406,2.4841,2316.1,2315.8,4.31806]
[1726575774604,2.4841,2316.0,2315.6,4.31852]
[1726575774898,2.4841,2316.0,2315.6,4.31849]
[1726575775258,2.4841,2316.0,2315.8,4.31813]
[1726575777576,2.2537,2316.3,2316.0,4.31763]
[1726575777907,2.2537,2316.3,2316.1,4.31758]
[1726575778760,2.2537,2316.3,2316.2,4.31741]
[1726575778955,2.2537,2316.3,2316.2,0.863499]
[1726575779202,2.2537,2316.3,2316.1,4.3175]
[1726575781656,2.2537,2316.3,2316.0,4.31777]
[1726575781858,2.2537,2316.3,2315.9,4.31785]
[1726575782073,6.57093,2316.3,2315.9,4.31785]
[1726575782278,2.411,2316.2,2315.8,4.31814]
[1726575782796,2.411,2316.2,2315.3,0.90055324]
[1726575782797,2.411,2316.1,2315.3,0.90055324]
[1726575782960,6.72868,2316.1,2315.7,4.31832]
[1726575783161,6.72868,2316.1,2315.8,4.31815]
[1726575783162,2.411,2316.1,2315.8,4.31815]
[1726575785602,2.411,2316.1,2315.8,4.31806]
[1726575786002,2.411,2316.1,2315.8,8.63613]
[1726575786590,2.411,2316.1,2315.8,5.181683]
[1726575786804,2.411,2316.1,2316.0,4.31778]
[1726575786986,4.3550074,2316.5,2316.0,4.31778]
[1726575786987,2.2696,2316.4,2316.0,4.31778]
[1726575787277,2.2696,2316.4,2316.0,8.63545]
[1726575787479,2.2696,2316.4,2316.2,4.3173]
[1726575787772,2.2696,2316.4,2316.2,4.31732]
[1726575789755,2.2696,2316.4,2316.1,4.31756]
[1726575790469,2.2696,2316.4,2316.2,4.31738]
[1726575791653,0.49030495,2316.5,2316.2,4.31728]
[1726575791931,0.49030495,2316.5,2316.4,8.63408]
[1726575792273,0.49030495,2316.5,2316.4,4.31704]
[1726575792795,0.0381474,2316.5,2316.4,4.31704]
[1726575794697,0.0381474,2316.5,2316.4,8.63408]
[1726575795205,0.0381474,2316.5,2316.4,9.84156593]
[1726575795389,0.0381474,2316.5,2316.4,10.51899834]
[1726575797575,0.0381474,2316.5,2316.4,14.72443889]
[1726575797839,2.4478,2316.9,2316.4,14.72443889]
[1726575797840,2.4478,2316.9,2316.7,4.31637]
[1726575798189,2.4478,2316.9,2316.8,4.31629]
[1726575798396,2.4478,2316.9,2316.8,5.179556]
[1726575799723,2.4478,2316.9,2316.8,0.863266]
[1726575800311,2.4478,2316.9,2316.8,5.179556]
[1726575800686,2.4478,2316.9,2316.8,0.863266]
[1726575802307,2.4478,2316.9,2316.8,5.179556]
[1726575802725,2.4478,2316.9,2316.8,0.863266]
[1726575802907,2.4478,2316.9,2316.6,4.31663]
[1726575803294,2.4478,2316.9,2316.7,4.31645]
[1726575807287,2.4478,2316.9,2316.7,4.31639]
[1726575807487,2.4478,2316.9,2316.8,4.31629]
[1726575807892,0.45208779,2317.0,2316.9,4.31611]
[1726575808092,0.45208779,2317.0,2316.9,5.17935]
[1726575808441,2.338,2317.1,2317.0,4.31592]
[1726575808597,2.338,2317.1,2316.9,5.17935]
[1726575809218,2.338,2317.1,2316.9,8.63213]
[1726575809392,2.338,2317.1,2316.9,4.31601]
[1726575810039,2.338,2317.1,2316.8,8.6324]
[1726575811419,2.338,2317.1,2316.9,4.3161]
[1726575811733,2.338,2317.1,2317.0,4.31592]
[1726575811892,0.0381474,2317.2,2317.0,5.179111]
[1726575812314,0.0381474,2317.2,2317.1,4.31573]
[1726575812546,0.0381474,2317.2,2317.0,5.179081]
[1726575812703,0.0381474,2317.2,2317.1,8.63146]
[1726575813100,0.0381474,2317.2,2317.1,19.85542623]
[1726575813342,0.0381474,2317.2,2317.1,21.05896249]
[1726575813668,7.5081474,2317.8,2317.6,4.31463]
[1726575813802,0.0381474,2317.8,2317.7,4.31462]
[1726575815969,0.0381474,2317.8,2317.7,8.62924]
[1726575816644,0.0381474,2317.8,2317.7,4.31462]
[1726575816850,0.0381474,2317.8,2317.7,5.08190562]
[1726575817184,0.0381474,2317.8,2317.7,0.76728562]
[1726575818263,2.4886474,2317.8,2317.6,4.3147]
[1726575818803,2.4886474,2317.8,2317.6,8.62942]
[1726575819155,2.4886474,2317.8,2317.3,3.35823623]
[1726575819363,2.4886474,2317.8,2317.4,3.0]
[1726575819560,6.8031974,2317.8,2317.4,3.0]
[1726575819804,2.3756,2317.7,2317.2,4.31547]
[1726575820097,2.3756,2317.7,2316.9,11.65337247]
[1726575820098,6.69049,2317.6,2317.1,4.31558]
[1726575820408,6.69049,2317.6,2317.0,4.31586]
[1726575820409,2.415,2317.3,2317.0,4.31586]
[1726575821211,2.415,2317.2,2316.8,4.31616]
[1726575821361,2.415,2317.2,2316.9,4.31603]
[1726575821696,2.415,2317.2,2317.0,4.31588]
[1726575822058,2.415,2317.2,2317.1,4.31573]
[1726575822266,2.415,2317.2,2317.0,4.31588]
[1726575822493,2.415,2317.2,2317.0,5.179085]
[1726575822700,2.415,2317.2,2317.0,4.31588]
[1726575823198,2.415,2317.2,2317.0,4.31582]
[1726575823361,2.415,2317.2,2317.1,4.31573]
[1726575823908,2.4989,2317.6,2317.3,4.31532]
[1726575824109,2.4989,2317.6,2317.3,4.746852]
[1726575824272,2.4989,2317.6,2317.3,4.31532]
[1726575824595,2.4989,2317.6,2317.1,4.31562]
[1726575824596,2.4989,2317.6,2317.2,4.31553]
[1726575825099,2.4989,2317.6,2317.3,4.31535]
[1726575825465,2.4989,2317.6,2317.4,4.31517]
[1726575825802,2.4989,2317.6,2317.3,4.31528]
[1726575825998,2.4989,2317.6,2317.3,8.63055]
[1726575826438,2.4989,2317.6,2317.4,4.31512]
[1726575827502,2.4989,2317.6,2317.3,4.31526]
[1726575827708,2.4989,2317.6,2317.3,8.63053]
[1726575828148,2.4989,2317.6,2317.3,4.31526]
[1726575828439,2.4989,2317.6,2317.3,8.63051]
[1726575828822,2.4989,2317.6,2317.4,4.31515]
[1726575829845,2.4989,2317.6,2317.4,4.31509]
[1726575830057,2.4989,2317.6,2317.4,4.31508]
[1726575833309,2.4989,2317.6,2317.4,5.178131]
[1726575833709,6.7101674,2317.8,2317.4,5.178131]
[1726575833908,6.7101674,2317.8,2317.5,4.31496]
[1726575833909,2.3956474,2317.8,2317.5,4.31496]
[1726575835952,6.7100974,2317.8,2317.4,5.178191]
[1726575836160,6.7100974,2317.8,2317.4,4.31514]
[1726575836327,6.7100774,2317.8,2317.4,4.31505]
[1726575837211,2.3956474,2317.8,2317.5,4.31492]
[1726575838947,6.7100974,2317.8,2317.4,4.31505]
[1726575840135,2.3956474,2317.8,2317.5,4.31494]
[1726575840826,2.3956474,2317.8,2317.6,4.31463]
[1726575841028,2.3956474,2317.8,2317.6,5.177587]
[1726575841327,2.3956474,2317.8,2317.7,4.31462]
[1726575841523,0.0381474,2317.8,2317.7,8.62924]
[1726575846456,0.0381474,2317.8,2317.7,16.30209623]
[1726575846768,9.8874,2318.3,2318.1,4.31369]
[1726575846927,2.4174,2318.3,2318.1,4.31369]
[1726575848438,2.4174,2318.3,2317.9,4.31407]
[1726575848662,2.3866,2318.2,2317.9,4.31407]
[1726575849707,6.70032,2318.2,2317.8,4.31443]
[1726575849979,6.70032,2318.2,2317.3,17.37203947]
[1726575849980,2.4342,2318.0,2317.6,4.3147]
[1726575850200,2.54206169,2318.0,2317.5,4.31491]
[1726575850492,2.3728,2317.9,2317.5,4.3149]
[1726575851141,2.3728,2317.9,2317.5,8.62981]
[1726575851584,2.3728,2317.9,2317.6,4.31477]
[1726575851743,2.3728,2317.9,2317.7,4.31462]
[1726575853096,2.3728,2317.9,2317.8,4.31443]
[1726575853392,2.4825,2318.3,2318.0,4.314]
[1726575853553,2.4825,2318.3,2317.9,4.31411]
[1726575853554,2.4825,2318.3,2318.1,4.31387]
[1726575854269,2.4825,2318.3,2318.1,4.31377]
[1726575854843,2.4825,2318.3,2318.1,8.62753]
[1726575855188,2.4825,2318.3,2318.1,4.31376]
[1726575856762,2.4825,2318.3,2318.2,4.31369]
[1726575857152,2.4825,2318.3,2318.1,5.176546]
[1726575857395,2.4825,2318.3,2318.1,5.176526]
[1726575857693,2.4825,2318.3,2318.2,4.31369]
[1726575859263,2.4825,2318.3,2318.2,8.62738]
[1726575859476,2.4857474,2318.5,2318.3,4.31336]
[1726575859894,2.4857474,2318.5,2318.4,4.31331]
[1726575860251,0.0381474,2318.5,2318.4,4.31331]
[1726575860450,0.0381474,2318.5,2318.4,9.057951]
[1726575862993,0.0381474,2318.5,2318.4,13.371261]
[1726575864326,0.0381474,2318.5,2318.4,15.13301281]
[1726575864538,0.0381474,2318.5,2318.4,24.26366074]
[1726575864746,2.4138474,2319.2,2319.0,4.31208]
[1726575865628,2.4138474,2319.2,2319.1,4.31201]
[1726575867993,2.4138474,2319.2,2318.9,4.31222]
[1726575868193,2.4138474,2319.2,2318.8,4.31241]
[1726575868393,2.4138474,2319.2,2318.9,4.31237]
[1726575868595,4.3501374,2319.2,2318.6,4.31276]
[1726575868824,2.4683,2319.0,2318.7,4.31269]
[1726575869010,2.4683,2319.0,2318.7,4.31259]
[1726575869329,2.4683,2319.0,2318.8,4.3125]
[1726575869851,2.4683,2319.0,2318.9,4.31238]
[1726575871633,2.4683,2319.0,2318.6,4.31282]
[1726575871837,6.78057,2319.0,2318.6,4.31282]
[1726575872146,3.39638363,2319.2,2318.4,3.431331]
[1726575872147,6.74697,2318.9,2318.4,3.431331]
[1726575872308,2.4345,2318.7,2318.4,4.31328]
[1726575872636,6.74737,2318.7,2318.3,4.31339]
[1726575872939,4.31296,2318.6,2318.2,4.31354]
[1726575873093,6.85516247,2318.7,2318.3,4.31349]
[1726575873290,2.4345,2318.5,2318.2,4.31365]
[1726575873802,6.74774,2318.5,2318.1,4.31379]
[1726575874108,6.74774,2318.5,2318.0,5.81522562]
[1726575874109,6.74783,2318.4,2318.0,5.81522562]
[1726575874296,2.4345,2318.2,2317.9,4.31413]
[1726575874503,6.74821,2318.2,2317.8,4.31435]
[1726575874753,6.74821,2318.2,2317.8,5.177231]
[1726575875091,6.74821,2318.2,2317.7,4.31453]
[1726575875092,2.4345,2318.0,2317.7,4.31453]
[1726575875588,2.4345,2318.0,2317.7,4.31452]
[1726575875885,2.4345,2318.0,2317.4,4.31516]